bitfinex/quotes_BTCUSD_20250726
["timestamp","ask_amount","ask_price","bid_price","bid_amount"]
[1753542754988,5.61796465,118140.0,118130.0,0.00054571]
[1753542755234,6.32447869,118140.0,118130.0,0.00054571]
[1753542755447,5.58616465,118140.0,118130.0,0.00260571]
[1753542755661,6.32447869,118140.0,118130.0,0.00260571]
[1753542756297,5.58916465,118140.0,118130.0,0.02622571]
[1753542756534,5.67464195,118140.0,118130.0,0.02622571]
[1753542756762,6.40892599,118140.0,118130.0,0.02622571]
[1753542757294,6.54324599,118140.0,118130.0,0.02622571]
[1753542757476,5.80493195,118140.0,118130.0,0.02622571]
[1753542757920,6.14714897,118140.0,118130.0,0.04515571]
[1753542758137,1.22535725,118140.0,118130.0,0.06125571]
[1753542758343,6.12081325,118140.0,118130.0,0.06125571]
[1753542758553,6.14714897,118140.0,118130.0,0.06125571]
[1753542759180,1.25169297,118140.0,118130.0,0.06125571]
[1753542759395,6.14714897,118140.0,118130.0,0.06125571]
[1753542759608,6.12081325,118140.0,118130.0,0.04515571]
[1753542760242,5.75165623,118140.0,118130.0,0.04515571]
[1753542760481,1.22535725,118140.0,118130.0,0.04515571]
[1753542760701,6.12081325,118140.0,118130.0,0.04515571]
[1753542760921,5.75165623,118140.0,118130.0,0.04515571]
[1753542761123,6.12280325,118140.0,118130.0,0.04515571]
[1753542762377,6.1487402,118140.0,118130.0,0.04515571]
[1753542763713,6.1487402,118140.0,118130.0,0.04202571]
[1753542765057,6.51789722,118140.0,118130.0,0.04202571]
[1753542765274,6.54284722,118140.0,118130.0,0.04202571]
[1753542766297,6.54587722,118140.0,118130.0,0.04202571]
[1753542766506,6.54587722,118140.0,118130.0,0.02622571]
[1753542767386,6.55180108,118140.0,118130.0,0.02622571]
[1753542767591,6.55180108,118140.0,118130.0,0.02416571]
[1753542768008,6.5781368,118140.0,118130.0,0.02416571]
[1753542768232,6.5943368,118140.0,118130.0,0.00054571]
[1753542768460,6.5781368,118140.0,118130.0,0.00054571]
[1753542768684,6.5946368,118140.0,118130.0,0.00054571]
[1753542769124,6.5781368,118140.0,118130.0,0.00054571]
[1753542770054,6.55180108,118140.0,118130.0,0.00054571]
[1753542772236,6.56760696,118140.0,118130.0,0.00054571]
[1753542772420,6.56760696,118140.0,118130.0,1.171e-05]
[1753542772972,5.82929292,118140.0,118130.0,1.171e-05]
[1753542773225,6.56760696,118140.0,118130.0,1.171e-05]
[1753542773425,6.56760696,118140.0,118130.0,0.02363171]
[1753542774524,1.67215096,118140.0,118130.0,0.02363171]
[1753542774815,6.56760696,118140.0,118130.0,0.02363171]
[1753542775109,6.56760696,118140.0,118130.0,1.171e-05]
[1753542776263,6.56760696,118140.0,118130.0,0.02371171]
[1753542777411,5.82929292,118140.0,118130.0,0.02371171]
[1753542777604,6.56760696,118140.0,118130.0,0.02371171]
[1753542778505,6.56762549,118140.0,118130.0,0.02371171]
[1753542779135,6.56762549,118140.0,118130.0,1.171e-05]
[1753542780393,5.82931145,118140.0,118130.0,1.171e-05]
[1753542780847,6.56762549,118140.0,118130.0,1.171e-05]
[1753542781060,6.56763207,118140.0,118130.0,1.171e-05]
[1753542782238,5.84591803,118140.0,118130.0,1.171e-05]
[1753542782452,5.86241803,118140.0,118130.0,1.171e-05]
[1753542782680,6.60073207,118140.0,118130.0,1.171e-05]
[1753542783531,6.61056765,118140.0,118130.0,1.171e-05]
[1753542784212,6.58423207,118140.0,118130.0,1.171e-05]
[1753542784433,6.61056765,118140.0,118130.0,1.171e-05]
[1753542786709,5.93139349,118140.0,118130.0,0.06070171]
[1753542786968,6.0482025,118140.0,118130.0,0.06070171]
[1753542787261,6.06404965,118140.0,118130.0,0.06070171]
[1753542787731,6.0482025,118140.0,118130.0,0.06070171]
[1753542787978,6.41735952,118140.0,118130.0,0.06070171]
[1753542788226,6.41727952,118140.0,118130.0,0.06070171]
[1753542788732,6.50382682,118140.0,118130.0,0.06070171]
[1753542789444,6.53252961,118140.0,118130.0,0.06070171]
[1753542790167,5.79421557,118140.0,118130.0,0.06070171]
[1753542790384,6.53252961,118140.0,118130.0,0.06070171]
[1753542790826,6.12292245,118140.0,118130.0,0.06070171]
[1753542791534,6.14699245,118140.0,118130.0,0.04155171]
[1753542791746,6.15020245,118140.0,118130.0,0.04155171]
[1753542792437,6.15020267,118140.0,118130.0,0.04155171]
[1753542797024,5.82149579,118140.0,118130.0,0.04155171]
[1753542797214,6.15020267,118140.0,118130.0,0.04155171]
[1753542798151,5.82149579,118140.0,118130.0,0.04155171]
[1753542798407,6.15020267,118140.0,118130.0,0.04155171]
[1753542799396,6.12151875,118140.0,118130.0,0.04155171]
[1753542800154,1.22606275,118140.0,118130.0,0.04155171]
[1753542800364,6.12151875,118140.0,118130.0,0.04155171]
[1753542800580,6.1155758,118140.0,118130.0,0.04155171]
[1753542800800,6.12151976,118140.0,118130.0,0.04155171]
[1753542802164,6.16976878,118140.0,118130.0,1.171e-05]
[1753542802411,6.21430299,118140.0,118130.0,1.171e-05]
[1753542802840,6.29063857,118140.0,118130.0,1.171e-05]
[1753542803269,1.39518257,118140.0,118130.0,1.171e-05]
[1753542803489,6.29063857,118140.0,118130.0,1.171e-05]
[1753542804603,6.29856274,118140.0,118130.0,1.171e-05]
[1753542805299,0.84649203,118120.0,118110.0,0.04990513]
[1753542805487,0.9957331,118120.0,118110.0,0.05252112]
[1753542805687,5.9483786,118120.0,118110.0,0.05549112]
[1753542806079,5.92204302,118120.0,118110.0,0.05549112]
[1753542806337,5.9483786,118120.0,118110.0,0.05549112]
[1753542806496,6.31914352,118120.0,118110.0,0.02631599]
[1753542806712,6.32227352,118120.0,118110.0,0.02631599]
[1753542807391,5.99356664,118120.0,118110.0,0.02731599]
[1753542807707,5.96723106,118120.0,118110.0,0.04261599]
[1753542808128,5.93854714,118120.0,118110.0,0.04261599]
[1753542808354,5.93854714,118120.0,118110.0,0.05811599]
[1753542808561,5.96723106,118120.0,118110.0,0.05811599]
[1753542808786,6.29593794,118120.0,118110.0,0.04281599]
[1753542809418,6.29593794,118120.0,118110.0,0.00148599]
[1753542810070,5.96723106,118120.0,118110.0,0.00148599]
[1753542810286,6.29593794,118120.0,118110.0,0.00148599]
[1753542810710,6.32327352,118120.0,118110.0,0.00048599]
[1753542810916,6.32427352,118120.0,118110.0,0.00048599]
[1753542811353,5.99556664,118120.0,118110.0,0.00048599]
[1753542811909,5.96923106,118120.0,118110.0,0.00048599]
[1753542812333,5.99556664,118120.0,118110.0,0.00048599]
[1753542812770,6.42985794,118120.0,118110.0,0.00048599]
[1753542812993,6.45619352,118120.0,118110.0,0.00048599]
[1753542813231,6.12748664,118120.0,118110.0,0.00048599]
[1753542813453,6.45619352,118120.0,118110.0,0.00048599]
[1753542815217,6.46213075,118120.0,118110.0,0.00048599]
[1753542816056,5.80471699,118120.0,118110.0,0.00048599]
[1753542816264,1.23796787,118120.0,118110.0,0.00048599]
[1753542816485,6.13342387,118120.0,118110.0,0.00048599]
[1753542816705,5.80471699,118120.0,118110.0,0.00048599]
[1753542816911,6.54468009,118120.0,118110.0,0.00048599]
[1753542817137,6.17469854,118120.0,118110.0,0.00048599]
[1753542817914,6.54468009,118120.0,118110.0,0.00048599]
[1753542818535,6.56038009,118120.0,118110.0,0.00048599]
[1753542819098,6.54468009,118120.0,118110.0,0.00048599]
[1753542819449,0.17780021,118110.0,118100.0,0.05889329]
[1753542819649,6.03719341,118110.0,118100.0,0.06107188]
[1753542820110,6.03936341,118110.0,118100.0,0.06107188]
[1753542820345,5.98434391,118110.0,118100.0,0.06107188]
[1753542820546,5.40158381,118110.0,118100.0,0.06107188]
[1753542820754,5.77156536,118110.0,118100.0,0.06107188]
[1753542820968,0.87610936,118110.0,118100.0,0.06107188]
[1753542821177,5.77156536,118110.0,118100.0,0.06207188]
[1753542821385,5.77156536,118110.0,118100.0,0.04796672]
[1753542822001,0.87610936,118110.0,118100.0,0.04796672]
[1753542822227,6.14154691,118110.0,118100.0,0.04796672]
[1753542823164,6.14467691,118110.0,118100.0,0.04140859]
[1753542823378,6.18293691,118110.0,118100.0,0.00104859]
[1753542823965,6.16723691,118110.0,118100.0,0.00104859]
[1753542824802,6.19266786,118110.0,118100.0,0.00104859]
[1753542825010,6.19266786,118110.0,118100.0,0.01634859]
[1753542825220,6.19266786,118110.0,118100.0,0.04090859]
[1753542827289,5.45270476,118110.0,118100.0,0.04090859]
[1753542827709,6.19266786,118110.0,118100.0,0.04090859]
[1753542828682,5.45270476,118110.0,118100.0,0.04090859]
[1753542828889,0.55724876,118110.0,118100.0,0.04090859]
[1753542829088,5.45270476,118110.0,118100.0,0.04090859]
[1753542829302,6.19266786,118110.0,118100.0,0.04090859]
[1753542830070,5.45270476,118110.0,118100.0,0.04090859]
[1753542830335,6.19266786,118110.0,118100.0,0.04090859]
[1753542830712,5.45270476,118110.0,118100.0,0.04090859]
[1753542830928,6.19266786,118110.0,118100.0,0.04090859]
[1753542831854,6.19266786,118110.0,118100.0,0.02560859]
[1753542832515,6.19266786,118110.0,118100.0,0.00104859]
[1753542833376,6.19861327,118110.0,118100.0,0.00104859]
[1753542833601,0.51781526,118100.0,118090.0,0.05765997]
[1753542833797,5.84207262,118100.0,118090.0,0.05978997]
[1753542834319,0.94661662,118100.0,118090.0,0.05978997]
[1753542834504,5.84207262,118100.0,118090.0,0.05978997]
[1753542835065,5.84710262,118100.0,118090.0,0.04528997]
[1753542836453,5.84710262,118100.0,118090.0,0.06068997]
[1753542837028,5.97858262,118100.0,118090.0,0.06068997]
[1753542837225,5.69307837,118100.0,118090.0,0.04528997]
[1753542837469,6.08805992,118100.0,118090.0,0.04528997]
[1753542838001,6.08805992,118100.0,118090.0,0.04315997]
[1753542839914,6.11350492,118100.0,118090.0,0.04315997]
[1753542842480,6.11350492,118100.0,118090.0,0.00239997]
[1753542843127,6.11350492,118100.0,118090.0,0.01769997]
[1753542843562,6.11350492,118100.0,118090.0,0.04047997]
[1753542844030,6.11350492,118100.0,118090.0,0.03847997]
[1753542844465,1.21804892,118100.0,118090.0,0.03847997]
[1753542844673,6.11350492,118100.0,118090.0,0.03847997]
[1753542845283,6.11350492,118100.0,118090.0,0.00039997]
[1753542845760,6.12920492,118100.0,118090.0,0.00039997]
[1753542846196,6.11350492,118100.0,118090.0,0.00039997]
[1753542847254,5.74352337,118100.0,118090.0,0.00039997]
[1753542847462,6.11350492,118100.0,118090.0,0.00039997]
[1753542847883,6.11350492,118100.0,118090.0,0.02317997]
[1753542849013,6.11350492,118100.0,118090.0,0.02186365]
[1753542849902,6.11350492,118100.0,118090.0,0.03826365]
[1753542851336,5.07328632,118090.0,118080.0,0.0322]
[1753542851599,5.07328632,118090.0,118080.0,0.05706859]
[1753542851600,5.74346247,118090.0,118080.0,0.05706859]
[1753542851836,5.66401517,118090.0,118080.0,0.04166859]
[1753542852012,5.66401517,118090.0,118080.0,0.05736859]
[1753542852211,5.65898517,118090.0,118080.0,0.05736859]
[1753542852890,0.76352917,118090.0,118080.0,0.05736859]
[1753542853152,5.65898517,118090.0,118080.0,0.05836859]
[1753542853615,5.74346247,118090.0,118080.0,0.05836859]
[1753542854068,5.37348092,118090.0,118080.0,0.05836859]
[1753542854289,5.74346247,118090.0,118080.0,0.05836859]
[1753542856158,5.75189198,118090.0,118080.0,0.05836859]
[1753542858250,5.30570103,118090.0,118080.0,0.22774528]
[1753542858471,5.67568258,118090.0,118080.0,0.22774528]
[1753542858702,5.67568258,118090.0,118080.0,0.05836859]
[1753542858884,5.30570103,118090.0,118080.0,0.05836859]
[1753542859093,5.67568258,118090.0,118080.0,0.05836859]
[1753542859302,5.76015988,118090.0,118080.0,0.05836859]
[1753542860222,5.76216988,118090.0,118080.0,0.05836859]
[1753542860631,5.76518988,118090.0,118080.0,0.05836859]
[1753542862251,5.39520833,118090.0,118080.0,0.05836859]
[1753542862460,5.76518988,118090.0,118080.0,0.05836859]
[1753542863023,5.79018988,118090.0,118080.0,0.05836859]
[1753542863499,5.65914988,118090.0,118080.0,0.05836859]
[1753542863668,5.79006988,118090.0,118080.0,0.05836859]
[1753542863871,0.89461388,118090.0,118080.0,0.05836859]
[1753542864072,5.79006988,118090.0,118080.0,0.05836859]
[1753542864282,5.79006988,118090.0,118080.0,0.04062859]
[1753542864916,5.42008833,118090.0,118080.0,0.04062859]
[1753542865127,5.79006988,118090.0,118080.0,0.04062859]
[1753542867809,5.79006988,118090.0,118080.0,0.01784859]
[1753542868691,5.33561103,118090.0,118080.0,0.01784859]
[1753542868886,5.67544258,118090.0,118080.0,0.06005859]
[1753542870410,5.30546103,118090.0,118080.0,0.06005859]
[1753542870595,5.67544258,118090.0,118080.0,0.06005859]
[1753542870808,5.67752258,118090.0,118080.0,0.06005859]
[1753542870938,5.31048103,118090.0,118080.0,0.06005859]
[1753542871142,5.68046258,118090.0,118080.0,0.06005859]
[1753542871356,5.54966258,118090.0,118080.0,0.06005859]
[1753542871605,5.68038258,118090.0,118080.0,0.06005859]
[1753542872394,5.76485988,118090.0,118080.0,0.06005859]
[1753542872614,5.63413988,118090.0,118080.0,0.06005859]
[1753542872837,5.76485988,118090.0,118080.0,0.06005859]
[1753542873036,5.78981988,118090.0,118080.0,0.06005859]
[1753542873237,5.65909988,118090.0,118080.0,0.06005859]
[1753542873442,5.65909988,118090.0,118080.0,0.04157859]
[1753542873701,5.41979833,118090.0,118080.0,0.01784859]
[1753542873916,5.28911833,118090.0,118080.0,0.01784859]
[1753542874132,5.79073988,118090.0,118080.0,0.01784859]
[1753542874347,5.42075833,118090.0,118080.0,0.01784859]
[1753542874555,5.79073988,118090.0,118080.0,0.01784859]
[1753542878711,0.89528388,118090.0,118080.0,0.01784859]
[1753542878933,5.79073988,118090.0,118080.0,0.01784859]
[1753542879759,5.42075833,118090.0,118080.0,0.01784859]
[1753542879971,5.70626258,118090.0,118080.0,0.01784859]
[1753542882613,5.33628103,118090.0,118080.0,0.01784859]
[1753542882829,5.70626258,118090.0,118080.0,0.01784859]
[1753542884574,5.56960258,118090.0,118080.0,0.03572859]
[1753542884801,5.0901838,118090.0,118080.0,0.61886413]
[1753542884993,5.09865148,118090.0,118080.0,0.25735112]
[1753542885163,5.46863303,118090.0,118080.0,0.26581959]
[1753542886359,5.60007303,118090.0,118080.0,0.25735112]
[1753542886571,5.23009148,118090.0,118080.0,0.25735112]
[1753542886844,5.60007303,118090.0,118080.0,0.25735112]
[1753542887409,5.59164352,118090.0,118080.0,0.25735112]
[1753542887996,5.59164352,118090.0,118080.0,0.25424112]
[1753542889240,5.59164352,118090.0,118080.0,0.24577258]
[1753542889478,5.58317584,118090.0,118080.0,0.24577258]
[1753542890841,5.58317584,118090.0,118080.0,0.25424105]
[1753542891814,5.21319429,118090.0,118080.0,0.25424105]
[1753542892032,5.58317584,118090.0,118080.0,0.25424105]
[1753542892490,0.69629896,118090.0,118080.0,0.24577258]
[1753542892732,5.59175496,118090.0,118080.0,0.25424112]
[1753542893118,5.59175496,118090.0,118080.0,0.24577258]
[1753542893348,5.58328706,118090.0,118080.0,0.23730397]
[1753542893606,5.58328706,118090.0,118080.0,0.22883528]
[1753542893756,5.58328706,118090.0,118080.0,0.23730411]
[1753542893967,5.58328706,118090.0,118080.0,0.24577287]
[1753542894397,5.66131632,118090.0,118080.0,0.06792742]
[1753542894698,5.68773632,118090.0,118080.0,0.05945859]
[1753542894975,5.68773632,118090.0,118080.0,0.05737859]
[1753542895165,5.31775477,118090.0,118080.0,0.05737859]
[1753542895310,5.68773632,118090.0,118080.0,0.05737859]
[1753542897643,5.68773632,118090.0,118080.0,0.04157859]
[1753542898029,5.68777632,118090.0,118080.0,0.04157859]
[1753542899138,5.68745632,118090.0,118080.0,0.04157859]
[1753542901626,5.60297902,118090.0,118080.0,0.04157859]
[1753542903311,5.60297902,118090.0,118080.0,0.00144859]
[1753542903750,5.61897902,118090.0,118080.0,0.00144859]
[1753542904389,5.60297902,118090.0,118080.0,0.00144859]
[1753542905291,5.60297902,118090.0,118080.0,0.01704859]
[1753542905706,5.68745632,118090.0,118080.0,0.01704859]
[1753542906121,0.79200032,118090.0,118080.0,0.01704859]
[1753542906373,5.60297902,118090.0,118080.0,0.01704859]
[1753542906802,5.60297902,118090.0,118080.0,0.00144859]
[1753542907215,0.70752302,118090.0,118080.0,0.01704859]
[1753542907409,5.60297902,118090.0,118080.0,0.01704859]
[1753542907621,5.23299747,118090.0,118080.0,0.01704859]
[1753542908079,5.60297902,118090.0,118080.0,0.04191859]
[1753542908921,5.68745632,118090.0,118080.0,0.04191859]
[1753542909826,5.04338287,118090.0,118080.0,0.60024413]
[1753542910046,5.2296808,118090.0,118080.0,0.23749404]
[1753542910263,5.2296808,118090.0,118080.0,0.24596273]
[1753542910680,5.22121319,118090.0,118080.0,0.23749404]
[1753542910905,5.22121319,118090.0,118080.0,0.61594428]
[1753542911140,4.92101041,118090.0,118080.0,0.62745289]
[1753542911375,4.92089919,118090.0,118080.0,0.6443899]
[1753542911608,4.91243129,118090.0,118080.0,0.63592085]
[1753542911719,4.91243129,118090.0,118080.0,0.64438918]
[1753542911920,4.92105625,118090.0,118080.0,0.64438918]
[1753542912586,4.92952415,118090.0,118080.0,0.64438918]
[1753542913005,4.94309219,118090.0,118080.0,0.24596272]
[1753542913162,5.31307374,118090.0,118080.0,0.25443126]
[1753542913571,4.94001219,118090.0,118080.0,0.25443126]
[1753542913772,4.94001219,118090.0,118080.0,0.26289973]
[1753542914011,0.04455619,118090.0,118080.0,0.26289973]
[1753542914206,4.94001219,118090.0,118080.0,0.26289973]
[1753542914434,4.94001219,118090.0,118080.0,0.39361973]
[1753542914877,4.92105618,118090.0,118080.0,0.40208806]
[1753542915302,4.9125885,118090.0,118080.0,0.77206961]
[1753542915504,4.895496,118090.0,118080.0,0.85958691]
[1753542915716,4.90396354,118090.0,118080.0,0.85958691]
[1753542915896,4.90396354,118090.0,118080.0,0.77510961]
[1753542916105,4.90396354,118090.0,118080.0,0.40512806]
[1753542916305,4.90396354,118090.0,118080.0,0.77510961]
[1753542916845,0.00850754,118090.0,118080.0,0.77510961]
[1753542916993,0.00850754,118090.0,118080.0,0.85958691]
[1753542917200,0.50850754,118090.0,118080.0,0.85958691]
[1753542917419,4e-05,118090.0,118080.0,0.85958691]
[1753542917642,0.40004,118090.0,118080.0,1.31404576]
[1753542918953,0.40004,118090.0,118080.0,0.90286891]
[1753542919202,0.40004,118090.0,118080.0,0.90386891]
[1753542919392,4e-05,118090.0,118080.0,0.90386891]
[1753542919591,4e-05,118090.0,118080.0,0.90286891]
[1753542919951,4e-05,118090.0,118080.0,0.90386891]
[1753542920170,4e-05,118090.0,118080.0,0.90186891]
[1753542920589,4e-05,118090.0,118080.0,0.90486891]
[1753542921927,4e-05,118090.0,118080.0,0.90686891]
[1753542922350,4e-05,118090.0,118080.0,0.57808266]
[1753542922602,4e-05,118090.0,118080.0,0.90686891]
[1753542924878,4e-05,118090.0,118080.0,0.57808266]
[1753542925099,4e-05,118090.0,118080.0,0.82239161]
[1753542930715,4e-05,118090.0,118080.0,0.49360536]
[1753542930922,4e-05,118090.0,118080.0,0.82239161]
[1753542934714,4e-05,118090.0,118080.0,0.84823227]
[1753542937021,4e-05,118090.0,118080.0,0.51944602]
[1753542937228,4e-05,118090.0,118080.0,0.84823227]
[1753542937445,4e-05,118090.0,118080.0,0.93270957]
[1753542938353,4e-05,118090.0,118080.0,0.84519227]
[1753542938987,4e-05,118090.0,118080.0,0.8863431]
[1753542940909,4e-05,118090.0,118080.0,0.51640602]
[1753542941350,4e-05,118090.0,118080.0,0.8863431]
[1753542952279,4e-05,118090.0,118080.0,0.86050244]
[1753542952695,4e-05,118090.0,118080.0,0.94497974]
[1753542954627,4e-05,118090.0,118080.0,0.57504266]
[1753542954847,4e-05,118090.0,118080.0,0.97018306]
[1753542955660,0.42438462,118090.0,118080.0,0.18329411]
[1753542955854,5.36064453,118090.0,118080.0,0.17482528]
[1753542956055,5.51307144,118090.0,118080.0,0.13548859]
[1753542956458,5.51307144,118090.0,118080.0,0.14391742]
[1753542956824,5.51307144,118090.0,118080.0,0.31676272]
[1753542957063,5.91307144,118090.0,118080.0,0.32623126]
[1753542957240,5.91307144,118090.0,118080.0,0.32723126]
[1753542957459,5.91307144,118090.0,118080.0,0.32727126]
[1753542958325,5.91307144,118090.0,118080.0,0.33573973]
[1753542958532,5.51307144,118090.0,118080.0,0.34320813]
[1753542958741,5.14313436,118090.0,118080.0,0.34320813]
[1753542958954,5.91307144,118090.0,118080.0,0.34320813]
[1753542959372,5.37377158,118090.0,118080.0,0.34320813]
[1753542959661,5.76064467,118090.0,118080.0,0.34320763]
[1753542959884,5.76911278,118090.0,118080.0,0.34320763]
[1753542960087,5.76911278,118090.0,118080.0,0.3347393]
[1753542960503,5.7773967,118090.0,118080.0,0.3347393]
[1753542961164,5.76892902,118090.0,118080.0,0.3347393]
[1753542961370,5.76892902,118090.0,118080.0,0.2046993]
[1753542961586,5.85340632,118090.0,118080.0,0.3347393]
[1753542962033,5.45340632,118090.0,118080.0,0.31780243]
[1753542962273,5.6058328,118090.0,118080.0,0.31780272]
[1753542962506,6.0058328,118090.0,118080.0,0.32627126]
[1753542962948,5.6058328,118090.0,118080.0,0.32627126]
[1753542963808,5.5213555,118090.0,118080.0,0.32627126]
[1753542964457,5.15141842,118090.0,118080.0,0.32627126]
[1753542964679,5.5213555,118090.0,118080.0,0.33473973]
[1753542965546,5.5213555,118090.0,118080.0,0.32627126]
[1753542965755,5.51288746,118090.0,118080.0,0.31780272]
[1753542965965,5.59736476,118090.0,118080.0,0.31780272]
[1753542966420,5.22742768,118090.0,118080.0,0.31780272]
[1753542966631,5.51288746,118090.0,118080.0,0.32627126]
[1753542966845,5.51288746,118090.0,118080.0,0.31780272]
[1753542967051,5.51288746,118090.0,118080.0,0.30933411]
[1753542967337,5.90441935,118090.0,118080.0,0.30933411]
[1753542967545,5.98889665,118090.0,118080.0,0.32627156]
[1753542967984,5.58889665,118090.0,118080.0,0.32627156]
[1753542968232,5.50441935,118090.0,118080.0,0.32627156]
[1753542968452,5.53448227,118090.0,118080.0,0.30969397]
[1753542968905,5.90441935,118090.0,118080.0,0.30969397]
[1753542969347,5.53448227,118090.0,118080.0,0.30969397]
[1753542969794,5.90441935,118090.0,118080.0,0.30969397]
[1753542970252,5.90441935,118090.0,118080.0,0.30122528]
[1753542970479,5.98889665,118090.0,118080.0,0.13184859]
[1753542971385,5.98889665,118090.0,118080.0,0.00144859]
[1753542971607,6.07015562,118090.0,118080.0,0.00144859]
[1753542971831,5.35661704,118090.0,118080.0,0.00144859]
[1753542972046,6.06655412,118090.0,118080.0,0.00144859]
[1753542972276,6.06655412,118090.0,118080.0,0.13328859]
[1753542972535,6.09255196,118090.0,118080.0,0.13328859]
[1753542972771,5.72261488,118090.0,118080.0,0.13328859]
[1753542972983,6.06621638,118090.0,118080.0,0.13228859]
[1753542973216,6.06621638,118090.0,118080.0,0.00044859]
[1753542973434,5.72261488,118090.0,118080.0,0.00044859]
[1753542973652,6.09255196,118090.0,118080.0,0.00044859]
[1753542973869,6.06621638,118090.0,118080.0,0.00044859]
[1753542974324,5.6962793,118090.0,118080.0,0.00044859]
[1753542974551,6.03937179,118090.0,118080.0,0.00044859]
[1753542974765,5.66943471,118090.0,118080.0,0.00044859]
[1753542975043,6.03937179,118090.0,118080.0,0.00044859]
[1753542975262,6.04037179,118090.0,118080.0,0.00044859]
[1753542975683,6.04137179,118090.0,118080.0,0.00044859]
[1753542975900,6.04237179,118090.0,118080.0,0.00044859]
[1753542976345,6.41230887,118090.0,118080.0,0.00044859]
[1753542976567,1.54369746,118090.0,118080.0,0.00044859]
[1753542976721,6.43915346,118090.0,118080.0,0.00044859]
[1753542977185,5.6992793,118090.0,118080.0,0.00044859]
[1753542977531,6.43915346,118090.0,118080.0,0.00044859]
[1753542977747,6.57195346,118090.0,118080.0,0.00044859]
[1753542977966,5.8320793,118090.0,118080.0,0.00044859]
[1753542978253,6.57195346,118090.0,118080.0,0.00044859]
[1753542980652,6.58940248,118090.0,118080.0,0.00044859]
[1753542981429,6.59279548,118090.0,118080.0,0.00044859]
[1753542982899,6.53755546,118090.0,118080.0,0.00044859]
[1753542986620,6.54347779,118090.0,118080.0,0.00044859]
[1753542986867,6.55926828,118090.0,118080.0,0.00044859]
[1753542987557,6.54347779,118090.0,118080.0,0.00044859]
[1753542988461,5.88517923,118090.0,118080.0,0.00044859]
[1753542988672,6.54347779,118090.0,118080.0,0.00044859]
[1753542989187,6.54347221,118090.0,118080.0,0.00044859]
[1753542989447,6.55924681,118090.0,118080.0,0.00044859]
[1753542993124,1.66379081,118090.0,118080.0,0.00044859]
[1753542993343,6.55924681,118090.0,118080.0,0.00044859]
[1753542995311,5.90094825,118090.0,118080.0,0.00044859]
[1753542995522,6.55924681,118090.0,118080.0,0.00044859]
[1753542997275,5.6129504,118080.0,118070.0,0.0004]
[1753542997496,6.62379201,118080.0,118070.0,0.0004]
[1753542997947,6.64690201,118080.0,118070.0,0.0004]
[1753542998227,1.75144601,118080.0,118070.0,0.0004]
[1753542998444,6.64690201,118080.0,118070.0,0.0004]
[1753542999562,6.67323759,118080.0,118070.0,0.0004]
[1753542999970,6.82323759,118080.0,118070.0,0.0004]
[1753543000189,1.93078159,118080.0,118070.0,0.0004]
[1753543000424,6.82623759,118080.0,118070.0,0.0004]
[1753543001046,6.82823759,118080.0,118070.0,0.0004]
[1753543001706,6.16993903,118080.0,118070.0,0.0004]
[1753543001916,6.87823759,118080.0,118070.0,0.0004]
[1753543002340,6.8782312,118080.0,118070.0,0.0004]
[1753543003878,6.87823344,118080.0,118070.0,0.0004]
[1753543004087,6.87823344,118080.0,118070.0,1e-08]
[1753543004515,6.8964172,118080.0,118070.0,1e-08]
[1753543004968,6.8960972,118080.0,118070.0,1e-08]
[1753543005180,6.85153786,118080.0,118070.0,1e-08]
[1753543006117,6.62465327,118080.0,118070.0,0.02271001]
[1753543006582,6.62465327,118080.0,118070.0,1e-08]
[1753543006810,6.74602019,118080.0,118070.0,1e-08]
[1753543007443,6.75390722,118080.0,118070.0,1e-08]
[1753543007943,0.73530945,118070.0,118060.0,1e-08]
[1753543008181,6.36462625,118070.0,118060.0,1e-08]
[1753543008425,6.26239633,118070.0,118060.0,1e-08]
[1753543008647,6.26966958,118070.0,118060.0,1e-08]
[1753543009302,6.28785373,118070.0,118060.0,1e-08]
[1753543009761,6.28985373,118070.0,118060.0,1e-08]
[1753543010621,6.27166958,118070.0,118060.0,1e-08]
[1753543012204,1.37621358,118070.0,118060.0,1e-08]
[1753543012421,6.27166958,118070.0,118060.0,1e-08]
[1753543012846,5.9425203,118070.0,118060.0,1e-08]
[1753543013081,6.03119958,118070.0,118060.0,0.00214001]
[1753543013301,5.18148381,118070.0,118060.0,0.05991001]
[1753543013799,4.9287801,118070.0,118060.0,0.5754047]
[1753543013993,4.9372495,118070.0,118060.0,0.25472554]
[1753543014185,4.92878003,118070.0,118060.0,0.2631953]
[1753543014407,4.93724943,118070.0,118060.0,0.2631953]
[1753543014617,4.93724943,118070.0,118060.0,0.25472554]
[1753543014850,5.03019621,118070.0,118060.0,0.26319545]
[1753543015062,5.03019621,118070.0,118060.0,0.25472554]
[1753543015063,5.02172731,118070.0,118060.0,0.25472554]
[1753543015271,5.02172731,118070.0,118060.0,0.24625556]
[1753543015478,5.02172731,118070.0,118060.0,0.25472554]
[1753543015668,5.02072731,118070.0,118060.0,0.26319545]
[1753543015888,5.19011877,118070.0,118060.0,0.23778558]
[1753543016138,5.19011877,118070.0,118060.0,0.2462557]
[1753543016346,5.18420202,118070.0,118060.0,0.2502557]
[1753543016561,5.49641264,118070.0,118060.0,0.06391001]
[1753543016774,5.50233422,118070.0,118060.0,0.06391001]
[1753543017476,5.16726336,118070.0,118060.0,0.06391001]
[1753543017675,5.15779388,118070.0,118060.0,0.06391001]
[1753543018110,5.48694316,118070.0,118060.0,0.06391001]
[1753543018557,5.57142046,118070.0,118060.0,0.06391001]
[1753543020362,5.57142046,118070.0,118060.0,0.05991001]
[1753543020574,5.57142046,118070.0,118060.0,0.06191001]
[1753543021692,5.57142046,118070.0,118060.0,0.06291001]
[1753543022121,5.24227118,118070.0,118060.0,0.06291001]
[1753543022378,5.57142046,118070.0,118060.0,0.06291001]
[1753543022579,5.57142046,118070.0,118060.0,0.05985001]
[1753543023081,5.24227118,118070.0,118060.0,0.05985001]
[1753543023300,5.57142046,118070.0,118060.0,0.05985001]
[1753543023839,5.59667956,118070.0,118060.0,0.05985001]
[1753543024486,5.59667956,118070.0,118060.0,0.06299001]
[1753543024763,5.26753028,118070.0,118060.0,0.06299001]
[1753543024944,5.01366152,118070.0,118060.0,0.25780532]
[1753543025200,5.03906916,118070.0,118060.0,0.2493357]
[1753543025416,4.9039249,118070.0,118060.0,0.3810957]
[1753543025617,4.92086306,118070.0,118060.0,0.39803558]
[1753543025823,5.01380969,118070.0,118060.0,0.39803558]
[1753543026035,5.00534036,118070.0,118060.0,0.39803558]
[1753543026270,5.01380969,118070.0,118060.0,0.39803558]
[1753543026482,5.02227917,118070.0,118060.0,0.39803566]
[1753543027104,5.01381027,118070.0,118060.0,0.38956575]
[1753543027491,4.92086349,118070.0,118060.0,0.39803566]
[1753543027756,0.02540749,118070.0,118060.0,0.40650549]
[1753543027992,4.91239416,118070.0,118060.0,0.40650506]
[1753543029413,4.92086349,118070.0,118060.0,0.3980353]
[1753543029635,4.92086342,118070.0,118060.0,0.38956547]
[1753543030059,4.92086342,118070.0,118060.0,0.3980353]
[1753543030300,4.92086342,118070.0,118060.0,0.40650506]
[1753543030520,4.92933282,118070.0,118060.0,0.3980353]
[1753543030711,4.92933275,118070.0,118060.0,0.3980353]